Cogmind - Beta 17 @@@ ROGUE MODE // 2026.07.28 @ 17:10:17 Player: teag2 Result: Self-destructed Performance ------------- Evolutions (2) 1000 Regions Visited (3) 600 Robots Destroyed (20) 100 Value Destroyed (733) 733 Prototype IDs (1) 20 Alien Tech Used (0) 0 Bonus (0) 0 TOTAL SCORE: 2453 Bonus ------- None Cogmind --------- Core Integrity 550/550 Matter 270/300 Energy 250/250 System Corruption 0% Temperature Cool (0) Movement Treading (152) Location -8/Materials Parts ------- > --- POWER (1) -------- Ion Engine > --- PROPULSION (4) --- Light Treads Advanced Treads Compact Wheel > --- UTILITY (4) ------ Large Storage Unit Makeshift Light Armor Plating > --- WEAPON (2) ------- Enhanced Autogun Battle Cannon > --- INVENTORY (15) --- Ion Engine Large Matter Pod (150) Structural Scanner Beam Cannon Subdweller Beam Cannon Battle Rifle Peak State ------------ > --- POWER ------------ Ion Engine > --- PROPULSION ------- Light Treads Advanced Treads Compact Wheel > --- UTILITY ---------- Large Storage Unit Makeshift Light Armor Plating > --- WEAPON ----------- Enhanced Autogun Battle Cannon > --- INVENTORY -------- Ion Engine Large Matter Pod Structural Scanner Beam Cannon Subdweller Beam Cannon Battle Rifle [Rating: 17] Favorites ----------- Power Light Ion Engine Engine Light Ion Engine Propulsion Light Treads Treads Light Treads Leg Aluminum Leg Wheel Compact Wheel Utility Heat Sink Device Heat Sink Storage Large Storage Unit Protection Scrap Shield Weapon Assault Rifle Energy Cannon Beam Cannon Ballistic Gun Assault Rifle Ballistic Cannon Battle Cannon Launcher Grenade Launcher Build | -11 -10 -10 -8 ------- Run | Yrd Mat Sub Mat Slots Evolved 4 | . . . 4 Power . | . . . . Propulsion 2 | . . . 2 Utility 2 | . . . 2 Weapon . | . . . . Parts Attached 18 | 3 3 9 3 Power 1 | . . 1 . Engine 1 | . . 1 . Core . | . . . . Reactor . | . . . . Propulsion 7 | 2 . 3 2 Treads 6 | 2 . 3 1 Leg . | . . . . Wheel 1 | . . . 1 Hover . | . . . . Flight . | . . . . Utility 4 | . 2 2 . Device 1 | . 1 . . Storage 1 | . 1 . . Processor . | . . . . Hackware . | . . . . Protection 2 | . . 2 . Artifact . | . . . . Weapon 6 | 1 1 3 1 Energy Gun . | . . . . Energy Cannon 1 | . . 1 . Ballistic Gun 3 | 1 1 . 1 Ballistic Cannon 1 | . . 1 . Launcher 1 | . . 1 . Special Weapon . | . . . . Impact Weapon . | . . . . Slashing Weapon . | . . . . Piercing Weapon . | . . . . Special Melee Weapon . | . . . . Unidentified Prototypes 1 | . . . 1 Parts Lost 8 | . 1 7 . Power 1 | . . 1 . Propulsion 3 | . . 3 . Utility 1 | . . 1 . Weapon 3 | . 1 2 . Highest Loss Streak 6 | . 1 6 . To Critical Strikes . | . . . . Average Backups 6 | 5 6 6 6 Power 1 | 1 1 1 1 Propulsion 2 | 3 2 1 . Utility 1 | . . 2 2 Weapon 1 | 1 1 . 2 Tool/Special . | . . . . Unused Backups 6 | . 1 . 5 Power 1 | . . . 1 Propulsion . | . . . . Utility 3 | . 1 . 2 Weapon 2 | . . . 2 Tool/Special . | . . . . Average Slot Usage (%) 90 | . 99 82 59 Engine 13 | . 14 13 9 Treads 26 | . 28 26 9 Device 7 | . 13 1 . Storage 10 | . 14 7 9 Protection 4 | . . 8 9 Energy Cannon 6 | . . 13 4 Ballistic Gun 15 | . 27 2 4 Ballistic Cannon 4 | . . 8 9 Peak Build Rating 17 | 6 8 11 17 Average Rating 7 | 6 7 8 12 On Entrance 7 | 6 6 8 10 Avg Prop Armor Cover (%) 7 | . . . 7 Naked Turns . | . . . . Heaviest Build 35 | 11 27 35 35 Greatest Support 42 | 40 40 40 42 Greatest Overweight (x) 2 | . . 1 2 Average Overweight (x) . | . . . 1 Largest Inventory Capacity 15 | 8 15 15 15 Average Capacity 10 | 8 11 10 15 Most Carried 10 | 6 10 10 7 Average Carried 6 | 4 6 5 6 Final Capacity 15 | 8 15 15 15 Final Carried 10 | 4 10 6 6 Class Distribution -------------------- 100% | Mutant Dominant Class ---------------- Mutant | -10/Materials Mutant | -10/Subcaves Mutant | -8/Materials Resources | -11 -10 -10 -8 ----------- Run | Yrd Mat Sub Mat Matter Collected 885 | 226 334 325 . Remotely . | . . . . Salvage Created 859 | . 359 500 . Parts 55 | . 16 39 . Haulers Intercepted 2 | . 2 . . Recyclers Shooed . | . . . . Parts Field Recycled . | . . . . Retrieved Matter . | . . . . Parts Self-Destructed 10 | . . 10 . Prevented . | . . . . Parts Restored . | . . . . Kills | -11 -10 -10 -8 ------- Run | Yrd Mat Sub Mat Combat Hostiles Destroyed 18 | . 6 12 . Guns 8 | . 6 2 . Cannons 10 | . . 10 . Classes Destroyed 4 | . 2 2 . Hauler 2 | . 2 . . Grunt 8 | . 6 2 . Sentry 1 | . . 1 . Subdweller 9 | . . 9 . Best Kill Streak 2 | . 2 2 . Combat Bots Only 2 | . 2 2 . Max Kills in Single Turn 1 | . 1 1 . Gunslinging . | . . . . Exploded . | . . . . Melee . | . . . . Uniques/NPCs Destroyed . | . . . . Combat | -11 -10 -10 -8 -------- Run | Yrd Mat Sub Mat Hostile Shots Fired 109 | . 45 64 . Missed 29 | . 6 23 . Hits 80 | . 39 41 . Projectile 80 | . 39 41 . AOE 11 | . . 11 . Critical Strikes 1 | . . 1 . Damage Taken 1577 | . 533 1044 . Core 223 | . 100 123 . Absorbed by Shields . | . . . . Regen/Repaired (Parts) 91 | . 91 . . Core Remaining (%) 55 | 100 . 10 . Volleys Fired 103 | . 38 65 . Largest 2 | . 2 2 . Hottest 93 | . 40 93 . Shots Fired 195 | . 75 120 . Gun 103 | . 75 28 . Cannon 90 | . . 90 . Launcher 2 | . . 2 . Special . | . . . . Kinetic 135 | . 75 60 . Thermal 58 | . . 58 . Explosive 2 | . . 2 . Electromagnetic . | . . . . Robot Hit Streak 28 | . 11 28 . Robot Miss Streak 2 | . 2 2 . Penetration Max . | . . . . Secondary Targets . | . . . . Shots Hit Robots 138 | . 58 80 . Core Hits 48 | . 23 25 . Critical Kills 1 | . 1 . . Critical Parts Destroyed . | . . . . Critical Strikes 1 | . 1 . . Destroy 1 | . 1 . . Melee Attacks . | . . . . Impact . | . . . . Slashing . | . . . . Piercing . | . . . . Sneak Attacks . | . . . . Combat Hostiles . | . . . . Follow-up Attacks . | . . . . Damage Inflicted 1983 | . 618 1365 . Guns 840 | . 609 231 . Cannons 1052 | . . 1052 . Explosions 82 | . . 82 . Melee . | . . . . Ramming 9 | . 9 . . Kinetic 1243 | . 609 634 . Thermal 649 | . . 649 . Explosive 82 | . . 82 . Electromagnetic . | . . . . Impact . | . . . . Slashing . | . . . . Piercing . | . . . . Highest Corruption . | . . . . Average Corruption . | . . . . Corruption Purged . | . . . . Corruption Blocked . | . . . . Overload Shots . | . . . . Overflow Damage . | . . . . Projectiles . | . . . . Explosions . | . . . . Melee . | . . . . Knockbacks 4 | . . 4 . Impact . | . . . . Kinetic 4 | . . 4 . Secondary . | . . . . Self-Inflicted Damage . | . . . . Shots . | . . . . Rammed 3 | . 3 . . Targets Rammed 3 | . 3 . . Kicked . | . . . . Crushed . | . . . . Highest Temperature 5 | . 5 . . Average Temperature 5 | . 5 . . Received Heat Transfer 459 | . 306 153 . Siege Activations . | . . . . Martial Activations . | . . . . Shielding Activations . | . . . . Robots Disrupted . | . . . . Combat Hostiles . | . . . . Robots Corrupted . | . . . . Combat Hostiles . | . . . . Parts Fried . | . . . . Impact Corruptions . | . . . . Robots Melted . | . . . . Combat Hostiles . | . . . . Parts Melted . | . . . . Heat Transferred 1369 | . . 1369 . Parts Sabotaged . | . . . . Parts Stolen . | . . . . Parts Stripped . | . . . . Power Chain Reactions . | . . . . Alert | -11 -10 -10 -8 ------- Run | Yrd Mat Sub Mat Maximum Alert Level . | . . . . Low Security (%) 100 | 100 100 . 100 Level 1 . | . . . . Level 2 . | . . . . Level 3 . | . . . . Level 4 . | . . . . Level 5 . | . . . . High Security . | . . . . Max Security . | . . . . Peak Influence 54 | . 54 . . Initial . | . . . . Average 8 | . 9 . . Influence Increases 316 | . 238 70 8 Destroy 0b10 Robot/C 180 | . 120 60 . Destroy 0b10 Robot/NC 10 | . 10 . . Destroy Leader 44 | . 34 10 . Successful Hack 37 | . 29 . 8 Select Force Hacks 30 | . 30 . . Lose Combat Pursuer 15 | . 15 . . Influence Decreases 308 | . 238 70 . Time Decay 308 | . 238 70 . Squads Dispatched 2 | . 2 . . Investigation 2 | . 2 . . Extermination . | . . . . Reinforcement . | . . . . Assault . | . . . . Garrison . | . . . . Intercept . | . . . . Searches Triggered . | . . . . Construction Impeded . | . . . . Haulers Reinforced . | . . . . Active Scanning Responses . | . . . . Cargo Convoy Interrupts . | . . . . Stealth | -11 -10 -10 -8 --------- Run | Yrd Mat Sub Mat Distress Signals 1 | . 1 . . Communications Jammed . | . . . . Distress Signals . | . . . . Times Spotted 26 | . 12 14 . Peak Tracking Total 3 | . 3 2 . Tactical Retreats 2 | . 1 1 . Traps | -11 -10 -10 -8 ------- Run | Yrd Mat Sub Mat Traps Triggered . | . . . . Indirectly . | . . . . Trap Hack Attempts . | . . . . Triggered . | . . . . Disarmed . | . . . . Reprogrammed . | . . . . Reused . | . . . . Traps Extracted . | . . . . Installed . | . . . . Triggered . | . . . . Machines | -11 -10 -10 -8 ---------- Run | Yrd Mat Sub Mat Machines Disabled . | . . . . Max in Single Turn . | . . . . Machines Repaired . | . . . . Machines Dismantled . | . . . . Machines Sabotaged . | . . . . Overloaded Fab Kills . | . . . . Hacking | -11 -10 -10 -8 --------- Run | Yrd Mat Sub Mat Machines Accessed 9 | . 8 . 1 Terminals 7 | . 6 . 1 Fabricators . | . . . . Repair Stations 1 | . 1 . . Recycling Units 1 | . 1 . . Scanalyzers . | . . . . Garrison Access . | . . . . Total Hacks 17 | . 16 . 1 Successful 12 | . 11 . 1 Failed 5 | . 5 . . Catastrophic . | . . . . Database Lockouts . | . . . . Manual 14 | . 13 . 1 Terminals 13 | . 12 . 1 Fabricators . | . . . . Repair Stations 3 | . 3 . . Recycling Units 1 | . 1 . . Scanalyzers . | . . . . Garrison Access . | . . . . Terminal Hacks 2 | . 1 . 1 Branch Access Points 1 | . . . 1 Terminal Index 1 | . 1 . . Fabricator Hacks . | . . . . Repair Station Hacks 2 | . 2 . . Scan Component 1 | . 1 . . Repair 1 | . 1 . . Recycling Unit Hacks . | . . . . Scanalyzer . | . . . . Garrison Access Hacks . | . . . . Unauthorized Hacks 8 | . 8 . . Terminals 7 | . 7 . . Botnet 1 | . 1 . . Operators 1 | . 1 . . Skim 5 | . 5 . . Fabricators . | . . . . Repair Stations . | . . . . Recycling Units 1 | . 1 . . Tunnel 1 | . 1 . . Scanalyzers . | . . . . Garrison Access . | . . . . Data Cores Recovered . | . . . . Used . | . . . . Hacking Detections 5 | . 5 . . Full Trace Events . | . . . . Feedback Events . | . . . . Feedback Blocked . | . . . . Robot Schematics Acquired . | . . . . Robots Built . | . . . . Authchips . | . . . . Time . | . . . . Total Robot Build Rating . | . . . . Part Schematics Acquired . | . . . . Parts Built . | . . . . Authchips . | . . . . Time . | . . . . Total Part Build Rating . | . . . . Part Studies Acquired . | . . . . Parts Repaired 1 | . 1 . . Time 26 | . 26 . . Parts Recycled . | . . . . Recycled Matter . | . . . . Retrieved Matter . | . . . . Retrieved Components . | . . . . Parts Scanalyzed . | . . . . Part Schematics Acquired . | . . . . Parts Damaged . | . . . . Bothacking | -11 -10 -10 -8 ------------ Run | Yrd Mat Sub Mat Used RIF Installer . | . . . . Robots Hacked . | . . . . Non-combat . | . . . . Combat . | . . . . Robot Hacks Applied . | . . . . Relay Couplers Released . | . . . . Fabnet Peak Effective % . | . . . . Robots Rewired . | . . . . Allies Hacked . | . . . . Hacks Repelled . | . . . . Allies | -11 -10 -10 -8 -------- Run | Yrd Mat Sub Mat Total Allies . | . . . . Largest Group . | . . . . Highest-Rated Group . | . . . . Highest-Rated Ally . | . . . . Total Orders . | . . . . Ally Attacks . | . . . . Total Damage . | . . . . Kills . | . . . . Allies Corrupted . | . . . . Allies Melted . | . . . . Intel | -11 -10 -10 -8 ------- Run | Yrd Mat Sub Mat Active Infowar (turns) . | . . . . Robot Analysis Total . | . . . . Derelict Logs Recovered . | . . . . Drone Launches . | . . . . Drone Recoveries . | . . . . Exploration | -11 -10 -10 -8 ------------- Run | Yrd Mat Sub Mat Turns Passed 3383 | 14 1747 1530 92 Spaces Moved 1587 | 5 784 746 52 Core . | . . . . Treads 1555 | 5 784 746 20 Legs . | . . . . Wheels 32 | . . . 32 Hover . | . . . . Flight . | . . . . Fastest Speed 130 | 160 160 160 130 Average Speed 164 | 160 160 168 165 Slowest Speed 240 | 160 160 240 240 Overloaded Moves . | . . . . Propulsion Burnouts . | . . . . Robots Hopped . | . . . . Potential Cave-ins . | . . . . Cave-ins Triggered . | . . . . Exploration Rate (%) 40 | 1 94 60 6 Regions Visited 3 Branch Regions 1 Pre-discovered Areas 3 | . 3 . . Known Exits Taken 2 | . 1 1 . Unknown Exits Taken 1 | 1 . . . Scrap Searched 2 | . . 2 . Spaces Dug . | . . . . Terrain Destroyed 13 | . . 13 . Melee . | . . . . Projectile 1 | . . 1 . AOE 12 | . . 12 . Terrain Rammed . | . . . . Walls Destroyed . | . . . . Machines Disabled . | . . . . Actions | -11 -10 -10 -8 --------- Run | Yrd Mat Sub Mat Total 2177 | 11 1207 902 57 Wait 436 | . 368 68 . Move 1584 | 4 783 745 52 Hop . | . . . . Pick Up 18 | 1 10 5 2 Fast Attach 2 | . . 2 . Attach 12 | . 3 7 2 Detach . | . . . . Swap 7 | 3 1 2 1 Drop 9 | 3 1 5 . Fire 103 | . 38 65 . Melee . | . . . . Ram . | . . . . Kick . | . . . . Crush 3 | . 3 . . Escape Stasis . | . . . . Rewire . | . . . . Trap . | . . . . Miscellaneous 3 | . . 3 . Route ------- -11/Scrapyard -10/Materials (discovered 6 exits: *Mat x3 / *Min x2 / *Sub) -10/Subcaves (discovered 3 exits: *Mat x2 / Rec) -8/Materials History --------- Turn | Location | Event 8 | -11/Scrapyard | Discovered new exit (range 3) 15 | -11/Scrapyard | Entered Materials 57 | -10/Materials | Discovered new exit (range 14) 301 | -10/Materials | Build established: Mutant 718 | -10/Materials | Repaired Assault Rifle 764 | -10/Materials | Discovered new exit (range 15) 918 | -10/Materials | Discovered new exit (range 15) 1068 | -10/Materials | Loaded intel: 14 trap records 1090 | -10/Materials | Learned location of 2 exits from Subcaves 1102 | -10/Materials | Learned location of Subcaves (-10) 1103 | -10/Materials | Identified exit to Subcaves 1103 | -10/Materials | Identified exit to Materials 1103 | -10/Materials | Identified exit to Mines 1106 | -10/Materials | Learned Materials trap positions 1108 | -10/Materials | Learned Storage garrison access intel 1119 | -10/Materials | Learned location of 2 exits from Subcaves 1762 | -10/Materials | Entered Subcaves 1763 | -10/Subcaves | Approached by a straggling Scientist 1763 | -10/Subcaves | Identified exit to Materials 1763 | -10/Subcaves | Identified exit to Recycling 1892 | -10/Subcaves | Core integrity fell below 50% 1916 | -10/Subcaves | Ambushed by Subdweller buried in earth 1949 | -10/Subcaves | Ambushed by Subdweller buried in earth 1973 | -10/Subcaves | Lost 6 parts (1p2n1u2w) 2577 | -10/Subcaves | Core integrity fell below 20% 3007 | -10/Subcaves | Disturbed a concealed Subdweller 3292 | -10/Subcaves | Entered Materials 3292 | -8/Materials | Evolved 4 slots: Propulsion x2, Utility x2 3293 | -8/Materials | Loaded intel: 24 trap records 3384 | -8/Materials | Self-destructed Last Messages --------------- 03054_ Acquired Battle Rifle. 03055_ Acquired 20 matter. 03082_ EX-EO1(R) destroyed. 03085_ LS-LHQ(R) knocked back. 03088_ Lgt. Treads destroyed. 03100_ LS-LHQ(R) destroyed. 03103_ Acquired 35 matter. 03260_ DX-J5N(u) deconstructs Twisted Machinery. PARAMETERS=PROPULSION+2,UTILITY+2 LOCATION=MATERIALS GOAL=ESCAPE Loading Materials trap records (x24)... 03331_ Acquired Prototype Ballistic Gun. 03332_ Identified Enh. Autogun. 03369_ Connecting with Terminal... 03376_ Acquired Adv. Treads. 03384_ Connecting with Terminal... >>Access(Branch) No branch access points found. Map ----- +----------------------------------------------------+ | | | | | | | | | | | | | | | | | | | | | | | | | | | | | | | | | | | | | | | | | | | | | | | ?????????????????????###########????????? | | ?????????????????????# "T" = #????????? | | ?????????????????????# @ #????????? | | ?????????????????????# #????????? | | ?????????????????????# #????????? | | ?????????????????????##+#############???? | | ??????????????????????# #???? | | ??????????????????????# #???? | | ??????????????????????# #???? | | ??????????????????????# #???? | | ????^?????????????????# ########## #???? | | ?????????????????????## #######??# #???? | | ?????????????????????# #??# #???? | | ?????????????????????# #??# #???? | | ?????????????????????# #??# #???? | | ?????????????????????# #??# #???? | | ?????????????????????# ####+##### | | ?????????????????????# # # | | ?????????????????????# # """ ] # | | ?????????????????????# # """ # | | ?????????????????????# # """ # | | ?????????????????????# + # | | ?????????????????????# # """ /# | | ?????????????????????# # """ / # | | ?????????????????????# ######## """ # | | ?????????????????????# ???????# /# | | ?????????????????????# ????????########## | +----------------------------------------------------+ Best States ------------- Heat Dissipation 35 Energy Generation 10 Energy Capacity 250 Matter Stores 300 Matter Capacity 300 Sight Range 16 Terrain Scan Density 10 Armor Coverage 800 Evasion (%) 40 Recoil Reduction 2 Item Schematics ----------------- None Robot Schematics ------------------ None Fabricated ------------ Nothing Repaired ---------- Assault Rifle | 9% | -10/Materials Studied --------- None Alien Tech Used ----------------- None Achievements -------------- None Challenges ------------ None Game ------ Seed ProjectilePhysicsBeamcaster Manual? 0 Play Time 00:13:36 Cumulative 83.9 hours Start 2026.07.28 @ 16:56:45 End 2026.07.28 @ 17:10:17 Sessions 1 Manual Loads 0 Difficulty Rogue Special Mode None Game No. 57 Rogue 56 Adventurer 1 Explorer 0 Win Type - Total 6 Types 3/0/1/1/0/0/0/0/0/1 Lore% 46 Gallery% 56 Achievement% 53 Wizard Run 0 Options --------- Layout 1 ASCII 0 Keyboard 0 Movement Numpad Keybinds 0 Fullscreen 1 Font 32/SmallcapsGlow Map View 50x35 Zoom Use 0% Tactical HUD 1 Map Filters NONE Filters NONE Steam 1 RUN: bc17d87c-a919-47f6-a4b7-ec09d008fc63